[Event "ROU-chT 1st League 2019"]
[Site "Mamaia"]
[Date "2019.09.24"]
[Round "4.19"]
[White "Macovei, Andrei"]
[Black "Oltean, Dorel"]
[Result "1/2-1/2"]
[ECO "B56"]
[WhiteElo "2426"]
[BlackElo "2333"]
[Annotator "NA"]
[PlyCount "149"]
[EventDate "2019.09.21"]
[EventType "team-tourn"]
[EventCountry "ROU"]
[SourceTitle "playchess.com"]
[Source "ChessBase"]
[SourceQuality "1"]
[TimeControl "40/5400+30:1800+30"]

1. e4 {[%emt 0:00:00]} c5 {[%emt 0:00:00]} 2. Nf3 {[%emt 0:00:07]} d6 {[%emt 0:00:00]} 3. d4 {[%emt 0:00:59]} cxd4 {[%emt 0:00:00]} 4. Nxd4 {[%emt 0:00:02]} Nf6 {[%emt 0:00:09]} 5. Nc3 {[%emt 0:00:02]} Nc6 {[%emt 0:00:13]} 6. f3 {[%emt 0:03:29]} e6 {[%emt 0:03:24]} 7. Be3 {[%emt 0:00:18]} d5 {[%emt 0:06:34]} 8. Bb5 {[%emt 0:06:58]} Bd7 {[%emt 0:04:52]} 9. exd5 {[%emt 0:01:25]} exd5 {[%emt 0:02:42]} 10. Qd2 {[%emt 0:05:01]} Be7 {[%emt 0:22:10]} 11. O-O-O {[%emt 0:03:10]} O-O {[%emt 0:01:15]} 12. g4 {[%emt 0:12:42]} Bb4 {[%emt 0:11:10]} 13. Bxc6 {[%emt 0:07:00]} bxc6 {[%emt 0:00:55]} 14. Nb3 {[%emt 0:00:09]} Re8 {[%emt 0:14:34]} 15. Bc5 {[%emt 0:01:19]} Qb8 {[%emt 0:03:06]} 16. a3 {[%emt 0:04:49]} Bxc5 {[%emt 0:02:43]} 17. Nxc5 {[%emt 0:00:04]} Qd6 {[%emt 0:00:27]} 18. Qd4 {[%emt 0:04:05]} Re7 {[%emt 0:00:47]} 19. h4 {[%emt 0:05:58]} Rae8 {[%emt 0:04:34]} 20. Nd3 {[%emt 0:02:51]} Qg3 {[%emt 0:13:07]} 21. Qf4 {[%emt 0:02:50]} Qxf4+ {[%emt 0:00:24]} 22. Nxf4 {[%emt 0:00:01]} Bc8 {[%emt 0:00:20]} 23. Ng2 {[%emt 0:19:21]} Ba6 {[%emt 0:00:55]} 24. Rhe1 {[%emt 0:00:09]} Kf8 {[%emt 0:04:26]} 25. Rxe7 {[%emt 0:02:44]} Rxe7 {[%emt 0:00:06]} 26. Rd2 {[%emt 0:02:45]} Nd7 {[%emt 0:01:00]} 27. Rf2 {[%emt 0:01:21]} Ne5 {[%emt 0:01:00]} 28. b3 {[%emt 0:00:34]} d4 {[%emt 0:00:40]} 29. Na4 {[%emt 0:00:06]} Bb5 {[%emt 0:01:22]} 30. Nc5 {[%emt 0:00:11]} Nd7 {[%emt 0:00:10]} 31. Nxd7+ {[%emt 0:05:26]} Rxd7 {[%emt 0:00:02]} 32. Nf4 {[%emt 0:01:27]} c5 {[%emt 0:00:29]} 33. Rd2 {[%emt 0:00:39]} Ke7 {[%emt 0:01:02]} 34. g5 {[%emt 0:01:40]} g6 {[%emt 0:00:43]} 35. Rd1 {[%emt 0:00:32]} Kd6 {[%emt 0:00:10]} 36. Re1 {[%emt 0:00:10]} Bc6 {[%emt 0:00:10]} 37. Nd3 {[%emt 0:00:14]} Bd5 {[%emt 0:00:50]} 38. Re8 {[%emt 0:01:17]} c4 {[%emt 0:00:35]} 39. bxc4 {[%emt 0:00:44]} Bxc4 {[%emt 0:00:06]} 40. Ne5 {[%emt 0:00:00]} Rc7 {[%emt 0:00:00]} 41. f4 {[%emt 0:06:46]} Bb3 {[%emt 0:14:35]} 42. Kb2 {[%emt 0:00:08]} Bxc2 {[%emt 0:06:09]} 43. Rd8+ {[%emt 0:00:21]} Ke6 {[%emt 0:00:13]} 44. Rxd4 {[%emt 0:00:07]} Bf5 {[%emt 0:03:56]} 45. Nc4 {[%emt 0:04:47]} Ke7 {[%emt 0:04:49]} 46. Ne3 {[%emt 0:02:27]} Be6 {[%emt 0:00:07]} 47. Ra4 {[%emt 0:01:15]} Kd6 {[%emt 0:00:39]} 48. Ra5 {[%emt 0:01:14]} Kc6 {[%emt 0:00:30]} 49. f5 {[%emt 0:02:20]} gxf5 {[%emt 0:00:55]} 50. Nxf5 {[%emt 0:00:03]} Kb6 {[%emt 0:00:47]} 51. Re5 {[%emt 0:00:04]} Rc5 {[%emt 0:00:42]} 52. Rxc5 {[%emt 0:00:22]} Kxc5 {[%emt 0:00:03]} 53. Ng7 {[%emt 0:05:33]} Kd4 {[%emt 0:00:28]} 54. Ne8 {[%emt 0:04:48]} Ke5 {[%emt 0:01:13]} 55. Kc3 {[%emt 0:00:43]} Bf5 {[%emt 0:02:58]} 56. Nf6 {[%emt 0:00:45]} Kf4 {[%emt 0:00:11]} 57. Kd4 {[%emt 0:00:04]} Bb1 {[%emt 0:00:19]} 58. a4 {[%emt 0:01:49]} Kg3 {[%emt 0:00:22]} 59. Ke5 {[%emt 0:01:01]} Kxh4 {[%emt 0:00:07]} 60. Kf4 {[%emt 0:00:03]} a5 {[%emt 0:02:19]} 61. Nd7 {[%emt 0:01:06]} Ba2 {[%emt 0:00:31]} 62. Nc5 {[%emt 0:00:20]} Bd5 {[%emt 0:00:02]} 63. Ke5 {[%emt 0:00:07]} Kxg5 {[%emt 0:00:17]} 64. Kxd5 {[%emt 0:00:12]} Kf4 {[%emt 0:00:28]} 65. Kd4 {[%emt 0:02:14]} h5 {[%emt 0:01:03]} 66. Nd3+ {[%emt 0:00:38]} Kg3 {[%emt 0:00:11]} 67. Ke3 {[%emt 0:04:07]} h4 {[%emt 0:00:07]} 68. Nf4 {[%emt 0:00:10]} h3 {[%emt 0:00:16]} 69. Nxh3 {[%emt 0:00:05]} Kxh3 {[%emt 0:00:08]} 70. Kf3 {[%emt 0:00:03]} Kh2 {[%emt 0:00:24]} 71. Kf2 {[%emt 0:00:11]} f6 {[%emt 0:00:07]} 72. Kf3 {[%emt 0:00:02]} Kg1 {[%emt 0:00:06]} 73. Kf4 {[%emt 0:00:01]} Kf2 {[%emt 0:00:07]} 74. Kf5 {[%emt 0:00:01]} Ke3 {[%emt 0:00:08]} 75. Kxf6 {[%emt 0:00:19]} 1/2-1/2

[Event "ROU-chT 1st League 2019"]
[Site "Mamaia"]
[Date "2019.09.24"]
[Round "4.20"]
[White "Florescu, Codrut-Constantin"]
[Black "Schitco, Ivan"]
[Result "1-0"]
[ECO "D61"]
[WhiteElo "2286"]
[BlackElo "2492"]
[Annotator "ChessBase"]
[PlyCount "91"]
[EventDate "2019.09.21"]
[EventType "team-tourn"]
[EventCountry "ROU"]
[SourceTitle "playchess.com"]
[Source "ChessBase"]
[SourceQuality "1"]
[TimeControl "40/5400+30:1800+30"]

1. d4 {[%emt 0:00:00]} Nf6 {[%emt 0:00:00]} 2. Nf3 {[%emt 0:00:00]} d5 {[%emt 0:00:06]} 3. c4 {[%emt 0:00:00]} e6 {[%emt 0:00:14]} 4. Bg5 {[%emt 0:00:44]} Nbd7 {[%emt 0:04:50]} 5. e3 {[%emt 0:00:11]} Be7 {[%emt 0:01:44]} 6. Nc3 {[%emt 0:00:07]} O-O {[%emt 0:00:15]} 7. Qc2 {[%emt 0:00:04]} h6 {[%emt 0:00:42]} 8. Bh4 {[%emt 0:00:17]} c6 {[%emt 0:00:48]} 9. Rd1 {[%emt 0:04:36]} a6 {[%emt 0:02:36]} 10. a3 {[%emt 0:07:50]} b5 {[%emt 0:09:12]} 11. c5 {[%emt 0:08:24]} e5 {[%emt 0:09:52]} 12. dxe5 {[%emt 0:00:34]} Ne8 {[%emt 0:02:10]} 13. Bg3 {[%emt 0:00:20]} Nxc5 {[%emt 0:02:23]} 14. Nd4 {[%emt 0:02:18]} Bd7 {[%emt 0:04:38]} 15. e4 {[%emt 0:17:42]} Nc7 {[%emt 0:17:22]} 16. Be2 {[%emt 0:00:32]} a5 {[%emt 0:08:03]} 17. exd5 {[%emt 0:05:32]} cxd5 {[%emt 0:00:50]} 18. Ndxb5 {[%emt 0:01:27]} Nxb5 {[%emt 0:01:42]} 19. Bxb5 {[%emt 0:01:02]} Bxb5 {[%emt 0:04:05]} 20. Nxb5 {[%emt 0:00:06]} Rb8 {[%emt 0:05:11]} 21. Nd4 {[%emt 0:00:44]} Qb6 {[%emt 0:02:57]} 22. Nf5 {[%emt 0:04:37]} Rfe8 {[%emt 0:03:02]} 23. Rxd5 {[%emt 0:04:33]} Ne6 {[%emt 0:04:57]} 24. O-O {[%emt 0:00:28]} Qxb2 {[%emt 0:02:19]} 25. Qxb2 {[%emt 0:01:28]} Rxb2 {[%emt 0:00:26]} 26. Rxa5 {[%emt 0:04:25]} Bc5 {[%emt 0:00:32]} 27. a4 {[%emt 0:00:09]} Reb8 {[%emt 0:02:36]} 28. h4 {[%emt 0:05:25]} R8b3 {[%emt 0:04:42]} 29. Rc1 {[%emt 0:07:21]} g6 {[%emt 0:01:16]} 30. Raxc5 {[%emt 0:03:56]} gxf5 {[%emt 0:02:47]} 31. Rc8+ {[%emt 0:01:31]} Kg7 {[%emt 0:00:12]} 32. h5 {[%emt 0:00:18]} Rb4 {[%emt 0:00:39]} 33. R8c4 {[%emt 0:00:58]} Rb1 {[%emt 0:00:15]} 34. Rxb1 {[%emt 0:02:39]} Rxc4 {[%emt 0:00:04]} 35. Ra1 {[%emt 0:00:26]} Rc5 {[%emt 0:02:32]} 36. a5 {[%emt 0:03:43]} f4 {[%emt 0:00:13]} 37. Bh2 {[%emt 0:00:05]} Nd4 {[%emt 0:01:16]} 38. a6 {[%emt 0:02:36]} Nb3 {[%emt 0:00:04]} 39. Rb1 {[%emt 0:02:13]} Nd4 {[%emt 0:00:43]} 40. Ra1 {[%emt 0:00:00]} Nb3 {[%emt 0:00:00]} 41. Rd1 {[%emt 0:04:37]} Nd4 {[%emt 0:08:20]} 42. f3 {[%emt 0:02:55]} Ne6 {[%emt 0:04:06]} 43. Ra1 {[%emt 0:00:17]} Rc8 {[%emt 0:00:02]} 44. a7 {[%emt 0:00:27]} Ra8 {[%emt 0:00:04]} 45. Kf1 {[%emt 0:00:04]} Kf8 {[%emt 0:00:31]} 46. Bg1 {[%emt 0:00:14]} 1-0

[Event "ROU-chT 1st League 2019"]
[Site "Mamaia"]
[Date "2019.09.24"]
[Round "4.21"]
[White "Vrencian, Lehel"]
[Black "Oltean, Liviu-Ioan"]
[Result "1-0"]
[ECO "B31"]
[WhiteElo "2306"]
[BlackElo "2313"]
[Annotator "NA"]
[PlyCount "77"]
[EventDate "2019.09.21"]
[EventType "team-tourn"]
[EventCountry "ROU"]
[SourceTitle "playchess.com"]
[Source "ChessBase"]
[SourceQuality "1"]
[TimeControl "40/5400+30:1800+30"]

1. e4 {[%emt 0:00:00]} c5 {[%emt 0:00:00]} 2. Nf3 {[%emt 0:00:00]} Nc6 {[%emt 0:01:00]} 3. Bb5 {[%emt 0:01:17]} g6 {[%emt 0:00:36]} 4. O-O {[%emt 0:00:18]} Bg7 {[%emt 0:00:07]} 5. Re1 {[%emt 0:00:30]} e5 {[%emt 0:00:54]} 6. c3 {[%emt 0:01:19]} Nge7 {[%emt 0:00:15]} 7. a3 {[%emt 0:06:26]} O-O {[%emt 0:01:04]} 8. b4 {[%emt 0:00:09]} d6 {[%emt 0:02:01]} 9. d3 {[%emt 0:00:41]} h6 {[%emt 0:04:37]} 10. Be3 {[%emt 0:02:12]} b6 {[%emt 0:06:02]} 11. Bc4 {[%emt 0:07:52]} Kh7 {[%emt 0:03:09]} 12. Nbd2 {[%emt 0:04:48]} f5 {[%emt 0:02:09]} 13. exf5 {[%emt 0:08:35]} Bxf5 {[%emt 0:02:56]} 14. bxc5 {[%emt 0:05:54]} bxc5 {[%emt 0:01:23]} 15. Qa4 {[%emt 0:09:38]} d5 {[%emt 0:15:16]} 16. Bb5 {[%emt 0:02:00]} Qd6 {[%emt 0:01:07]} 17. Nb3 {[%emt 0:20:44]} d4 {[%emt 0:06:15]} 18. cxd4 {[%emt 0:00:54]} exd4 {[%emt 0:10:18]} 19. Bc1 {[%emt 0:01:04]} a6 {[%emt 0:09:42]} 20. Bxc6 {[%emt 0:02:53]} Nxc6 {[%emt 0:02:27]} 21. Qc4 {[%emt 0:00:30]} Ne5 {[%emt 0:02:27]} 22. Nxe5 {[%emt 0:00:52]} Bxe5 {[%emt 0:00:36]} 23. f4 {[%emt 0:03:12]} Bg7 {[%emt 0:05:25]} 24. Qxc5 {[%emt 0:00:48]} Qxc5 {[%emt 0:00:37]} 25. Nxc5 {[%emt 0:00:02]} Rfc8 {[%emt 0:00:14]} 26. Ne4 {[%emt 0:00:53]} Rc2 {[%emt 0:02:50]} 27. Rb1 {[%emt 0:03:36]} Rac8 {[%emt 0:00:26]} 28. Bb2 {[%emt 0:06:28]} g5 {[%emt 0:10:58]} 29. Nd6 {[%emt 0:02:59]} Bxd3 {[%emt 0:06:40]} 30. Nxc8 {[%emt 0:01:01]} Rxc8 {[%emt 0:00:17]} 31. Rbd1 {[%emt 0:01:48]} Rc2 {[%emt 0:01:40]} 32. Rxd3 {[%emt 0:01:02]} Rxb2 {[%emt 0:00:08]} 33. f5 {[%emt 0:00:38]} g4 {[%emt 0:00:26]} 34. h3 {[%emt 0:02:42]} h5 {[%emt 0:00:23]} 35. hxg4 {[%emt 0:00:06]} hxg4 {[%emt 0:00:06]} 36. Re7 {[%emt 0:00:53]} Kh6 {[%emt 0:00:37]} 37. Re6+ {[%emt 0:01:12]} Kh5 {[%emt 0:00:08]} 38. f6 {[%emt 0:00:18]} Bh6 {[%emt 0:02:46]} 39. f7 {[%emt 0:00:58]} 1-0

[Event "ROU-chT 1st League 2019"]
[Site "Mamaia"]
[Date "2019.09.24"]
[Round "4.22"]
[White "Talu, Mircea"]
[Black "Dicu, Razvan-Stefan"]
[Result "1-0"]
[ECO "D17"]
[WhiteElo "2288"]
[BlackElo "2291"]
[Annotator "NA"]
[PlyCount "129"]
[EventDate "2019.09.21"]
[EventType "team-tourn"]
[EventCountry "ROU"]
[SourceTitle "playchess.com"]
[Source "ChessBase"]
[SourceQuality "1"]
[TimeControl "40/5400+30:1800+30"]

1. Nf3 {[%emt 0:00:00]} Nf6 {[%emt 0:02:30]} 2. c4 {[%emt 0:00:00]} c6 {[%emt 0:01:04]} 3. d4 {[%emt 0:00:05]} d5 {[%emt 0:00:09]} 4. Nc3 {[%emt 0:00:08]} dxc4 {[%emt 0:00:30]} 5. a4 {[%emt 0:00:10]} Bf5 {[%emt 0:00:25]} 6. Ne5 {[%emt 0:00:07]} Nbd7 {[%emt 0:01:16]} 7. Nxc4 {[%emt 0:00:08]} Qc7 {[%emt 0:00:59]} 8. g3 {[%emt 0:00:07]} e5 {[%emt 0:02:14]} 9. dxe5 {[%emt 0:00:06]} Nxe5 {[%emt 0:00:07]} 10. Bf4 {[%emt 0:00:05]} Nfd7 {[%emt 0:00:09]} 11. Bg2 {[%emt 0:00:26]} g5 {[%emt 0:11:43]} 12. Nxe5 {[%emt 0:00:30]} gxf4 {[%emt 0:01:29]} 13. Nxd7 {[%emt 0:00:13]} Bxd7 {[%emt 0:00:14]} 14. Qd4 {[%emt 0:05:16]} Rg8 {[%emt 0:00:12]} 15. Rd1 {[%emt 0:14:10]} Bg7 {[%emt 0:35:01]} 16. Qe4+ {[%emt 0:03:54]} Qe5 {[%emt 0:00:06]} 17. gxf4 {[%emt 0:00:34]} Qxe4 {[%emt 0:01:35]} 18. Bxe4 {[%emt 0:00:23]} f5 {[%emt 0:00:04]} 19. Bc2 {[%emt 0:08:51]} Be6 {[%emt 0:00:30]} 20. e3 {[%emt 0:01:26]} Bxc3+ {[%emt 0:05:03]} 21. bxc3 {[%emt 0:00:27]} Bd5 {[%emt 0:00:04]} 22. Rf1 {[%emt 0:03:39]} Bc4 {[%emt 0:00:25]} 23. Bd3 {[%emt 0:01:05]} Bxd3 {[%emt 0:00:07]} 24. Rxd3 {[%emt 0:00:04]} Rg2 {[%emt 0:00:31]} 25. Rh1 {[%emt 0:01:02]} Ke7 {[%emt 0:00:31]} 26. Ke2 {[%emt 0:00:15]} Rd8 {[%emt 0:00:50]} 27. Rxd8 {[%emt 0:00:22]} Kxd8 {[%emt 0:00:05]} 28. Kf1 {[%emt 0:05:56]} Rg7 {[%emt 0:06:39]} 29. Rg1 {[%emt 0:00:32]} Rxg1+ {[%emt 0:15:48]} 30. Kxg1 {[%emt 0:00:06]} a5 {[%emt 0:00:31]} 31. Kf1 {[%emt 0:00:05]} b5 {[%emt 0:00:25]} 32. Ke2 {[%emt 0:00:09]} Kd7 {[%emt 0:00:06]} 33. axb5 {[%emt 0:03:56]} cxb5 {[%emt 0:00:09]} 34. Kd3 {[%emt 0:00:38]} Kc6 {[%emt 0:03:26]} 35. f3 {[%emt 0:00:44]} Kd5 {[%emt 0:02:16]} 36. e4+ {[%emt 0:01:09]} Kc5 {[%emt 0:00:15]} 37. Kc2 {[%emt 0:00:26]} Kc6 {[%emt 0:03:17]} 38. Kd3 {[%emt 0:11:01]} Kc5 {[%emt 0:00:22]} 39. Ke3 {[%emt 0:00:24]} Kc4 {[%emt 0:04:49]} 40. Kd2 {[%emt 0:00:00]} a4 {[%emt 0:00:00]} 41. Kc2 {[%emt 0:01:20]} Kc5 {[%emt 0:01:02]} 42. Kb2 {[%emt 0:00:29]} Kc4 {[%emt 0:05:42]} 43. exf5 {[%emt 0:10:09]} Kd5 {[%emt 0:00:06]} 44. Ka3 {[%emt 0:00:06]} Kc5 {[%emt 0:01:22]} 45. f6 {[%emt 0:00:57]} Kd6 {[%emt 0:00:06]} 46. f5 {[%emt 0:00:36]} Kd7 {[%emt 0:00:07]} 47. c4 {[%emt 0:00:06]} bxc4 {[%emt 0:00:10]} 48. Kxa4 {[%emt 0:00:06]} Ke8 {[%emt 0:00:03]} 49. Kb4 {[%emt 0:00:05]} Kf7 {[%emt 0:00:07]} 50. Kxc4 {[%emt 0:00:07]} Kxf6 {[%emt 0:00:05]} 51. Kd4 {[%emt 0:00:27]} Kxf5 {[%emt 0:00:07]} 52. Ke3 {[%emt 0:00:07]} Ke5 {[%emt 0:03:57]} 53. f4+ {[%emt 0:02:10]} Kf5 {[%emt 0:00:24]} 54. Kf3 {[%emt 0:00:04]} Kf6 {[%emt 0:00:31]} 55. Ke4 {[%emt 0:00:27]} Ke6 {[%emt 0:00:09]} 56. f5+ {[%emt 0:00:03]} Kf6 {[%emt 0:00:08]} 57. Kf4 {[%emt 0:00:02]} Kf7 {[%emt 0:00:23]} 58. Ke5 {[%emt 0:00:35]} Ke7 {[%emt 0:01:05]} 59. f6+ {[%emt 0:00:15]} Kf7 {[%emt 0:00:09]} 60. Kf5 {[%emt 0:00:03]} Kf8 {[%emt 0:03:40]} 61. Ke6 {[%emt 0:00:12]} Ke8 {[%emt 0:00:10]} 62. f7+ {[%emt 0:00:07]} Kf8 {[%emt 0:00:04]} 63. Kf6 {[%emt 0:00:04]} h5 {[%emt 0:00:15]} 64. Kg6 {[%emt 0:00:08]} h4 {[%emt 0:00:08]} 65. h3 {[%emt 0:00:04]} 1-0

[Event "ROU-chT 1st League 2019"]
[Site "Mamaia"]
[Date "2019.09.24"]
[Round "4.23"]
[White "Nastase, Robert-Paul"]
[Black "Zubac, Marius"]
[Result "1-0"]
[ECO "B31"]
[WhiteElo "2280"]
[BlackElo "2135"]
[Annotator "NA"]
[PlyCount "101"]
[EventDate "2019.09.21"]
[EventType "team-tourn"]
[EventCountry "ROU"]
[SourceTitle "playchess.com"]
[Source "ChessBase"]
[SourceQuality "1"]
[TimeControl "40/5400+30:1800+30"]

1. e4 {[%emt 0:00:00]} c5 {[%emt 0:00:00]} 2. Nf3 {[%emt 0:00:00]} Nc6 {[%emt 0:00:00]} 3. Bb5 {[%emt 0:00:22]} g6 {[%emt 0:00:12]} 4. Bxc6 {[%emt 0:00:05]} dxc6 {[%emt 0:00:10]} 5. d3 {[%emt 0:00:03]} Bg7 {[%emt 0:00:25]} 6. h3 {[%emt 0:00:05]} e5 {[%emt 0:03:38]} 7. O-O {[%emt 0:01:28]} Qe7 {[%emt 0:00:41]} 8. Nbd2 {[%emt 0:00:13]} Be6 {[%emt 0:03:47]} 9. a3 {[%emt 0:02:04]} Rd8 {[%emt 0:02:01]} 10. Qe2 {[%emt 0:03:35]} Nh6 {[%emt 0:03:45]} 11. Qe3 {[%emt 0:02:42]} f6 {[%emt 0:00:40]} 12. b4 {[%emt 0:00:24]} cxb4 {[%emt 0:04:08]} 13. axb4 {[%emt 0:00:16]} b6 {[%emt 0:02:11]} 14. d4 {[%emt 0:01:45]} Nf7 {[%emt 0:01:41]} 15. c4 {[%emt 0:00:22]} Qb7 {[%emt 0:13:27]} 16. d5 {[%emt 0:03:56]} Bd7 {[%emt 0:00:06]} 17. dxc6 {[%emt 0:08:44]} Bxc6 {[%emt 0:00:16]} 18. b5 {[%emt 0:00:02]} Bd7 {[%emt 0:00:58]} 19. Ba3 {[%emt 0:00:13]} Bh6 {[%emt 0:03:20]} 20. Qe2 {[%emt 0:00:13]} Rc8 {[%emt 0:03:54]} 21. Rfc1 {[%emt 0:01:34]} Nd8 {[%emt 0:00:58]} 22. Rd1 {[%emt 0:06:18]} Ne6 {[%emt 0:07:16]} 23. Qd3 {[%emt 0:00:20]} Kf7 {[%emt 0:01:33]} 24. Nxe5+ {[%emt 0:01:06]} fxe5 {[%emt 0:00:39]} 25. Nf3 {[%emt 0:00:02]} Rhd8 {[%emt 0:03:58]} 26. Nxe5+ {[%emt 0:00:37]} Ke8 {[%emt 0:00:04]} 27. Ng4 {[%emt 0:10:03]} Bg7 {[%emt 0:04:39]} 28. Qd6 {[%emt 0:12:05]} Nc5 {[%emt 0:01:03]} 29. Nf6+ {[%emt 0:00:14]} Kf7 {[%emt 0:01:11]} 30. Nxh7 {[%emt 0:00:25]} Be6 {[%emt 0:13:23]} 31. Qf4+ {[%emt 0:04:08]} Kg8 {[%emt 0:00:08]} 32. Rxd8+ {[%emt 0:00:03]} Rxd8 {[%emt 0:01:27]} 33. Nf6+ {[%emt 0:00:03]} Kf7 {[%emt 0:07:47]} 34. Bxc5 {[%emt 0:05:45]} bxc5 {[%emt 0:01:44]} 35. Nd5+ {[%emt 0:05:58]} Ke8 {[%emt 0:02:31]} 36. Ra6 {[%emt 0:04:23]} Bf7 {[%emt 0:07:18]} 37. Nc7+ {[%emt 0:02:18]} Ke7 {[%emt 0:01:16]} 38. Qg5+ {[%emt 0:00:03]} Kd7 {[%emt 0:02:45]} 39. Rd6+ {[%emt 0:00:03]} Kxd6 {[%emt 0:00:09]} 40. Qxd8+ {[%emt 0:00:00]} Ke5 {[%emt 0:00:00]} 41. Qe7+ {[%emt 0:00:08]} Be6 {[%emt 0:03:28]} 42. Qxg7+ {[%emt 0:00:17]} Kxe4 {[%emt 0:00:46]} 43. Qe7 {[%emt 0:03:02]} Kd3 44. Qd6+ Kxc4 {[%emt 0:02:21]} 45. Qxe6+ {[%emt 0:00:14]} Kb4 {[%emt 0:00:16]} 46. Qc6 {[%emt 0:00:23]} Qxc6 {[%emt 0:02:56]} 47. bxc6 {[%emt 0:00:05]} Ka5 {[%emt 0:00:04]} 48. Nd5 {[%emt 0:00:02]} Ka6 {[%emt 0:00:32]} 49. h4 {[%emt 0:00:17]} c4 {[%emt 0:00:08]} 50. g4 {[%emt 0:00:05]} c3 {[%emt 0:00:12]} 51. h5 {[%emt 0:00:01]} 1-0

[Event "ROU-chT 1st League 2019"]
[Site "Mamaia"]
[Date "2019.09.24"]
[Round "4.24"]
[White "Horvat, Dan-Sebastian"]
[Black "Ciorica, Mihai-Vlad"]
[Result "0-1"]
[ECO "B20"]
[WhiteElo "2099"]
[BlackElo "1985"]
[Annotator "NA"]
[PlyCount "118"]
[EventDate "2019.09.21"]
[EventType "team-tourn"]
[EventCountry "ROU"]
[SourceTitle "playchess.com"]
[Source "ChessBase"]
[SourceQuality "1"]
[TimeControl "40/5400+30:1800+30"]

1. e4 {[%emt 0:01:12]} c5 {[%emt 0:00:00]} 2. c4 {[%emt 0:00:58]} Nc6 {[%emt 0:00:00]} 3. Nc3 {[%emt 0:00:16]} g6 {[%emt 0:00:26]} 4. g3 {[%emt 0:00:21]} Bg7 {[%emt 0:00:07]} 5. Bg2 {[%emt 0:00:16]} e6 {[%emt 0:00:19]} 6. Nge2 {[%emt 0:00:08]} Nge7 {[%emt 0:00:07]} 7. O-O {[%emt 0:00:12]} O-O {[%emt 0:00:08]} 8. d3 {[%emt 0:00:05]} d6 {[%emt 0:00:29]} 9. Be3 {[%emt 0:00:07]} Nd4 {[%emt 0:00:39]} 10. Qd2 {[%emt 0:00:07]} Rb8 {[%emt 0:01:13]} 11. Bh6 {[%emt 0:00:59]} Nec6 {[%emt 0:00:47]} 12. Bxg7 {[%emt 0:00:52]} Kxg7 {[%emt 0:00:02]} 13. Nxd4 {[%emt 0:04:57]} Nxd4 {[%emt 0:00:06]} 14. Ne2 {[%emt 0:01:19]} e5 {[%emt 0:17:59]} 15. Nxd4 {[%emt 0:01:16]} cxd4 {[%emt 0:00:07]} 16. f4 {[%emt 0:01:12]} f6 {[%emt 0:00:06]} 17. Rac1 {[%emt 0:04:40]} Bd7 {[%emt 0:03:16]} 18. Qb4 {[%emt 0:06:30]} Qb6 {[%emt 0:03:23]} 19. Qa3 {[%emt 0:00:51]} Rfc8 {[%emt 0:10:34]} 20. b4 {[%emt 0:11:55]} a5 {[%emt 0:02:03]} 21. Rb1 {[%emt 0:00:08]} axb4 {[%emt 0:00:45]} 22. Rxb4 {[%emt 0:00:07]} Qc5 {[%emt 0:01:39]} 23. Qb2 {[%emt 0:00:08]} Bc6 {[%emt 0:05:44]} 24. Bh3 {[%emt 0:06:02]} Re8 {[%emt 0:02:06]} 25. Qd2 {[%emt 0:03:59]} Ra8 {[%emt 0:01:49]} 26. Rfb1 {[%emt 0:04:15]} Re7 {[%emt 0:07:11]} 27. R4b2 {[%emt 0:13:56]} Ra3 {[%emt 0:03:09]} 28. Rb3 {[%emt 0:05:39]} Qa5 {[%emt 0:02:15]} 29. R1b2 {[%emt 0:00:20]} Qxd2 {[%emt 0:01:09]} 30. Rxd2 {[%emt 0:00:02]} Ra5 {[%emt 0:04:21]} 31. f5 {[%emt 0:08:03]} Re8 {[%emt 0:02:01]} 32. g4 {[%emt 0:04:39]} Rea8 {[%emt 0:07:22]} 33. Rbb2 {[%emt 0:00:16]} g5 {[%emt 0:00:04]} 34. Bf1 {[%emt 0:00:49]} Ra3 {[%emt 0:07:05]} 35. Be2 {[%emt 0:04:51]} Rc3 {[%emt 0:05:44]} 36. Bd1 {[%emt 0:02:46]} Raa3 {[%emt 0:03:08]} 37. Bc2 {[%emt 0:03:56]} h5 {[%emt 0:01:05]} 38. h4 {[%emt 0:03:06]} hxg4 {[%emt 0:02:33]} 39. hxg5 {[%emt 0:00:21]} fxg5 {[%emt 0:00:15]} 40. Rh2 {[%emt 0:00:00]} Rxd3 {[%emt 0:00:00]} 41. Bxd3 {[%emt 0:17:09]} Rxd3 {[%emt 0:05:15]} 42. Rh5 {[%emt 0:01:41]} Bxe4 {[%emt 0:00:36]} 43. Rxg5+ {[%emt 0:00:08]} Kf6 {[%emt 0:02:13]} 44. Rxg4 {[%emt 0:00:13]} Kxf5 {[%emt 0:03:08]} 45. Rh4 {[%emt 0:02:17]} Rd1+ {[%emt 0:06:29]} 46. Kf2 {[%emt 0:00:40]} Bc6 {[%emt 0:07:09]} 47. Rh6 {[%emt 0:04:03]} e4 {[%emt 0:01:23]} 48. Rxd6 {[%emt 0:00:20]} Ke5 {[%emt 0:00:20]} 49. c5 {[%emt 0:01:36]} Rh1 {[%emt 0:04:16]} 50. Rb4 {[%emt 0:08:12]} e3+ {[%emt 0:02:52]} 51. Ke2 {[%emt 0:00:11]} Rh2+ {[%emt 0:00:09]} 52. Kd1 {[%emt 0:02:06]} Bf3+ {[%emt 0:01:29]} 53. Kc1 {[%emt 0:00:02]} Rh1+ {[%emt 0:00:16]} 54. Kb2 {[%emt 0:02:38]} e2 {[%emt 0:00:07]} 55. Rd8 {[%emt 0:00:24]} Bc6 {[%emt 0:00:04]} 56. Rxb7 {[%emt 0:00:23]} Rb1+ {[%emt 0:00:55]} 57. Ka3 {[%emt 0:00:59]} Rxb7 {[%emt 0:01:02]} 58. Rf8 {[%emt 0:03:02]} Ra7+ {[%emt 0:00:04]} 59. Kb2 {[%emt 0:00:17]} e1=Q {[%emt 0:00:07]} 0-1